[Event "*** Titled Tuesday Blitz"]
[Site "Chess.com"]
[Date "2021.03.30"]
[Round "3"]
[White "ljuks68"]
[Black "Magila31"]
[Result "1/2-1/2"]
[WhiteElo "2475"]
[BlackElo "2278"]
[TimeControl "180+1"]
[EndTime "10:30:19 PDT"]
[Termination "Game drawn by stalemate"]

1. e4 {[%clk 0:03:00.9]} 1... g6 {[%clk 0:02:59]} 2. d4 {[%clk 0:03:00]} 2...
Bg7 {[%clk 0:02:58.6]} 3. Nc3 {[%clk 0:03:00.4]} 3... d6 {[%clk 0:02:58.3]} 4.
f4 {[%clk 0:02:59.4]} 4... a6 {[%clk 0:02:56.9]} 5. Nf3 {[%clk 0:02:58.8]} 5...
b5 {[%clk 0:02:51.9]} 6. Bd3 {[%clk 0:02:52.4]} 6... Bb7 {[%clk 0:02:51.5]} 7.
a4 {[%clk 0:02:51.7]} 7... b4 {[%clk 0:02:49.3]} 8. Ne2 {[%clk 0:02:51.8]} 8...
c5 {[%clk 0:02:40.4]} 9. c3 {[%clk 0:02:49.8]} 9... Nd7 {[%clk 0:02:38.4]} 10.
O-O {[%clk 0:02:48.5]} 10... bxc3 {[%clk 0:02:35.6]} 11. bxc3 {[%clk 0:02:48]}
11... cxd4 {[%clk 0:02:36]} 12. cxd4 {[%clk 0:02:47.1]} 12... Ngf6 {[%clk
0:02:34.7]} 13. Ng3 {[%clk 0:02:31.8]} 13... O-O {[%clk 0:02:26.8]} 14. Kh1
{[%clk 0:02:23.8]} 14... Qc7 {[%clk 0:01:36.1]} 15. Be3 {[%clk 0:02:16.2]} 15...
Rac8 {[%clk 0:01:31]} 16. Qe2 {[%clk 0:02:14.1]} 16... Qa5 {[%clk 0:01:24.3]}
17. Bd2 {[%clk 0:02:11.6]} 17... Qb6 {[%clk 0:01:23.5]} 18. Rab1 {[%clk
0:02:06.7]} 18... Qa7 {[%clk 0:01:23.5]} 19. Be3 {[%clk 0:02:06.8]} 19... Qa8
{[%clk 0:01:23]} 20. d5 {[%clk 0:02:03.1]} 20... Nc5 {[%clk 0:01:22]} 21. Bc2
{[%clk 0:02:00.6]} 21... a5 {[%clk 0:01:21.5]} 22. Bd4 {[%clk 0:01:59.9]} 22...
Ba6 {[%clk 0:01:21.1]} 23. Qf2 {[%clk 0:01:53.4]} 23... Bxf1 {[%clk 0:01:20.1]}
24. Rxf1 {[%clk 0:01:53.7]} 24... Qa6 {[%clk 0:01:10.7]} 25. Rd1 {[%clk
0:01:42.9]} 25... Ng4 {[%clk 0:00:56.3]} 26. Qd2 {[%clk 0:01:36.2]} 26... Bxd4
{[%clk 0:00:53.2]} 27. Qxd4 {[%clk 0:01:36]} 27... e5 {[%clk 0:00:45.2]} 28.
dxe6 {[%clk 0:01:29.7]} 28... Nxe6 {[%clk 0:00:44.4]} 29. Qd2 {[%clk 0:01:30]}
29... Qb6 {[%clk 0:00:37.4]} 30. Rf1 {[%clk 0:01:15.6]} 30... Ne3 {[%clk
0:00:33.6]} 31. Bd3 {[%clk 0:01:07.3]} 31... Nxf1 {[%clk 0:00:32]} 32. Bxf1
{[%clk 0:01:07.3]} 32... Qb4 {[%clk 0:00:30.6]} 33. Qd5 {[%clk 0:01:00.2]} 33...
Nxf4 {[%clk 0:00:28.9]} 34. Qg5 {[%clk 0:00:59.8]} 34... Ne6 {[%clk 0:00:22.5]}
35. Qh6 {[%clk 0:00:59.7]} 35... Qc5 {[%clk 0:00:16.5]} 36. h3 {[%clk
0:00:58.7]} 36... f6 {[%clk 0:00:14.1]} 37. Bb5 {[%clk 0:00:56.5]} 37... Rf7
{[%clk 0:00:12.9]} 38. Kh2 {[%clk 0:00:53.5]} 38... Nd4 {[%clk 0:00:11]} 39.
Nxd4 {[%clk 0:00:46.5]} 39... Qxd4 {[%clk 0:00:11.1]} 40. Qh4 {[%clk 0:00:43.4]}
40... Qe5 {[%clk 0:00:10.7]} 41. Qg4 {[%clk 0:00:43]} 41... Kg7 {[%clk
0:00:09.7]} 42. Qxc8 {[%clk 0:00:42.5]} 42... h5 {[%clk 0:00:08.4]} 43. h4
{[%clk 0:00:41]} 43... Qf4 {[%clk 0:00:07.8]} 44. Bc4 {[%clk 0:00:40.3]} 44...
Re7 {[%clk 0:00:07.5]} 45. Qg8+ {[%clk 0:00:39.7]} 45... Kh6 {[%clk 0:00:07.8]}
46. Qh8+ {[%clk 0:00:39.3]} 46... Rh7 {[%clk 0:00:07.8]} 47. Qf8+ {[%clk
0:00:38.8]} 47... Rg7 {[%clk 0:00:07.9]} 48. Qa8 {[%clk 0:00:19.8]} 48... Qxh4+
{[%clk 0:00:07.1]} 49. Kg1 {[%clk 0:00:19.2]} 49... Qxg3 {[%clk 0:00:07.1]} 50.
Qd5 {[%clk 0:00:18.4]} 50... Qe3+ {[%clk 0:00:06.8]} 51. Kh2 {[%clk 0:00:17.9]}
51... Qf4+ {[%clk 0:00:06.8]} 52. Kh1 {[%clk 0:00:17.4]} 52... h4 {[%clk
0:00:07.1]} 53. Qe6 {[%clk 0:00:16.1]} 53... h3 {[%clk 0:00:05.7]} 54. Qxh3+
{[%clk 0:00:15.6]} 54... Kg5 {[%clk 0:00:04.1]} 55. g3 {[%clk 0:00:15.8]} 55...
Qg4 {[%clk 0:00:02.7]} 56. Qh2 {[%clk 0:00:14.3]} 56... Qh5 {[%clk 0:00:02.1]}
57. Qxh5+ {[%clk 0:00:12.7]} 57... Kxh5 {[%clk 0:00:02.5]} 58. Kg2 {[%clk
0:00:13.3]} 58... Kg5 {[%clk 0:00:02.9]} 59. Be2 {[%clk 0:00:13.3]} 59... Rc7
{[%clk 0:00:03.6]} 60. Bb5 {[%clk 0:00:12.4]} 60... Rc3 {[%clk 0:00:04]} 61. Bd7
{[%clk 0:00:10.9]} 61... f5 {[%clk 0:00:04.2]} 62. exf5 {[%clk 0:00:10.3]} 62...
gxf5 {[%clk 0:00:04.6]} 63. Kf2 {[%clk 0:00:10.3]} 63... f4 {[%clk 0:00:04.9]}
64. g4 {[%clk 0:00:10.1]} 64... d5 {[%clk 0:00:05.4]} 65. Be6 {[%clk 0:00:09.7]}
65... d4 {[%clk 0:00:05.6]} 66. Bf5 {[%clk 0:00:10.2]} 66... d3 {[%clk
0:00:05.8]} 67. Kf3 {[%clk 0:00:10.5]} 67... d2+ {[%clk 0:00:05.7]} 68. Ke2
{[%clk 0:00:10.5]} 68... Re3+ {[%clk 0:00:05.1]} 69. Kxd2 {[%clk 0:00:10.3]}
69... Rg3 {[%clk 0:00:05.3]} 70. Ke2 {[%clk 0:00:09.8]} 70... Rxg4 {[%clk
0:00:05.8]} 71. Bxg4 {[%clk 0:00:09.4]} 71... Kxg4 {[%clk 0:00:05.8]} 72. Kf2
{[%clk 0:00:09.5]} 72... f3 {[%clk 0:00:05.8]} 73. Kf1 {[%clk 0:00:09]} 73...
Kf4 {[%clk 0:00:05.8]} 74. Kf2 {[%clk 0:00:09]} 74... Ke4 {[%clk 0:00:05.8]} 75.
Kf1 {[%clk 0:00:08.5]} 75... Ke3 {[%clk 0:00:06.2]} 76. Ke1 {[%clk 0:00:08.3]}
76... Kd3 {[%clk 0:00:06.7]} 77. Kf2 {[%clk 0:00:08.5]} 77... Kc3 {[%clk
0:00:07.2]} 78. Kxf3 {[%clk 0:00:09]} 78... Kb3 {[%clk 0:00:07.8]} 79. Ke2
{[%clk 0:00:09.5]} 79... Kxa4 {[%clk 0:00:08.3]} 80. Kd1 {[%clk 0:00:10]} 80...
Kb3 {[%clk 0:00:08.9]} 81. Kc1 {[%clk 0:00:10.3]} 81... Ka2 {[%clk 0:00:09.4]}
82. Kc2 {[%clk 0:00:10.5]} 82... a4 {[%clk 0:00:09.8]} 83. Kc1 {[%clk
0:00:10.3]} 83... a3 {[%clk 0:00:10.3]} 84. Kc2 {[%clk 0:00:10.6]} 84... Ka1
{[%clk 0:00:10.7]} 85. Kc1 {[%clk 0:00:10.8]} 85... a2 {[%clk 0:00:11.1]} 86.
Kc2 {[%clk 0:00:10.8]} 1/2-1/2

[Event "*** Titled Tuesday Blitz"]
[Site "Chess.com"]
[Date "2021.03.30"]
[Round "3"]
[White "seorobert1971"]
[Black "dpruess"]
[Result "1-0"]
[WhiteElo "2737"]
[BlackElo "2350"]
[TimeControl "180+1"]
[EndTime "10:30:26 PDT"]
[Termination "seorobert1971 won by resignation"]

1. e4 {[%clk 0:03:00.9]} 1... c5 {[%clk 0:02:58.6]} 2. Nc3 {[%clk 0:03:01.8]}
2... a6 {[%clk 0:02:56.6]} 3. Nge2 {[%clk 0:03:02.6]} 3... d6 {[%clk 0:02:52.8]}
4. g3 {[%clk 0:03:02.2]} 4... Nc6 {[%clk 0:02:48.6]} 5. Bg2 {[%clk 0:03:02.1]}
5... g6 {[%clk 0:02:48.9]} 6. O-O {[%clk 0:03:02]} 6... Bg7 {[%clk 0:02:49.4]}
7. f4 {[%clk 0:03:02.2]} 7... e6 {[%clk 0:02:48.2]} 8. d3 {[%clk 0:03:02.2]}
8... Nge7 {[%clk 0:02:48.3]} 9. Be3 {[%clk 0:03:02.1]} 9... Nd4 {[%clk
0:02:48.3]} 10. Qd2 {[%clk 0:03:00.8]} 10... O-O {[%clk 0:02:47.3]} 11. Rae1
{[%clk 0:02:59.4]} 11... Rb8 {[%clk 0:02:30.8]} 12. Nd1 {[%clk 0:02:58]} 12...
b5 {[%clk 0:02:24.7]} 13. c3 {[%clk 0:02:57.6]} 13... Nxe2+ {[%clk 0:02:24.6]}
14. Qxe2 {[%clk 0:02:57.5]} 14... b4 {[%clk 0:02:23.4]} 15. c4 {[%clk
0:02:57.2]} 15... Nc6 {[%clk 0:02:13.3]} 16. g4 {[%clk 0:02:53.5]} 16... Nd4
{[%clk 0:02:09.2]} 17. Qf2 {[%clk 0:02:50.4]} 17... f5 {[%clk 0:02:08.2]} 18.
exf5 {[%clk 0:02:47.9]} 18... gxf5 {[%clk 0:02:05.6]} 19. g5 {[%clk 0:02:46.2]}
19... Bb7 {[%clk 0:01:55.5]} 20. h4 {[%clk 0:02:44.7]} 20... Qe8 {[%clk
0:01:41.5]} 21. Bxb7 {[%clk 0:02:37.5]} 21... Rxb7 {[%clk 0:01:42.4]} 22. Qg2
{[%clk 0:02:36.9]} 22... Re7 {[%clk 0:01:39.8]} 23. Bd2 {[%clk 0:02:24.1]} 23...
Qa4 {[%clk 0:01:36.4]} 24. h5 {[%clk 0:02:18]} 24... Qc2 {[%clk 0:01:08]} 25.
Re3 {[%clk 0:02:04.6]} 25... a5 {[%clk 0:01:01.7]} 26. Rg3 {[%clk 0:01:58.5]}
26... e5 {[%clk 0:00:42.2]} 27. h6 {[%clk 0:01:57.2]} 27... exf4 {[%clk
0:00:38.6]} 28. hxg7 {[%clk 0:01:36.7]} 28... Ne2+ {[%clk 0:00:34.5]} 29. Qxe2
{[%clk 0:01:35.2]} 29... Rxe2 {[%clk 0:00:35.4]} 30. gxf8=Q+ {[%clk 0:01:34.2]}
30... Kxf8 {[%clk 0:00:35.1]} 31. Bxf4 {[%clk 0:01:34]} 31... Kf7 {[%clk
0:00:25.7]} 32. Bxd6 {[%clk 0:01:29]} 32... Kg6 {[%clk 0:00:20.4]} 33. Bf4
{[%clk 0:01:24]} 33... a4 {[%clk 0:00:19.8]} 34. a3 {[%clk 0:01:12.4]} 34...
bxa3 {[%clk 0:00:17.9]} 35. bxa3 {[%clk 0:01:12.1]} 35... Qb3 {[%clk 0:00:18.1]}
36. Ne3 {[%clk 0:01:05.9]} 36... Qxd3 {[%clk 0:00:17.5]} 37. Ng2 {[%clk
0:00:57.4]} 37... Qxc4 {[%clk 0:00:14.1]} 38. Nh4+ {[%clk 0:00:55.8]} 38... Kf7
{[%clk 0:00:13.7]} 39. Nxf5 {[%clk 0:00:53.8]} 39... Ke6 {[%clk 0:00:12.5]} 40.
Ng7+ {[%clk 0:00:49.7]} 40... Kd7 {[%clk 0:00:12.7]} 41. Nh5 {[%clk 0:00:47.5]}
41... Kc6 {[%clk 0:00:09.7]} 42. Nf6 {[%clk 0:00:37.5]} 42... Qd4+ {[%clk
0:00:09.5]} 43. Kh1 {[%clk 0:00:37.4]} 43... c4 {[%clk 0:00:10]} 44. Ng4 {[%clk
0:00:23]} 44... Qe4+ {[%clk 0:00:09.3]} 45. Kg1 {[%clk 0:00:22.4]} 45... Qd4+
{[%clk 0:00:08.8]} 46. Be3 {[%clk 0:00:22.3]} 46... Qe4 {[%clk 0:00:08.8]} 47.
Rf6+ {[%clk 0:00:21.9]} 47... Kb5 {[%clk 0:00:08.6]} 48. Rb6+ {[%clk 0:00:20.3]}
48... Ka5 {[%clk 0:00:08.4]} 49. Rf6 {[%clk 0:00:15.5]} 49... Qb1+ {[%clk
0:00:08]} 50. Rf1 {[%clk 0:00:15.3]} 50... Qc2 {[%clk 0:00:08.5]} 51. Bc5 {[%clk
0:00:12.3]} 51... Qe4 {[%clk 0:00:08.3]} 52. Bb4+ {[%clk 0:00:12]} 52... Ka6
{[%clk 0:00:08.6]} 53. Rf6+ {[%clk 0:00:11.6]} 53... Kb7 {[%clk 0:00:08.9]} 54.
Rf7+ {[%clk 0:00:11.3]} 54... Ka8 {[%clk 0:00:08.7]} 55. Rf8+ {[%clk 0:00:11.1]}
55... Kb7 {[%clk 0:00:09]} 56. Rf7+ {[%clk 0:00:10]} 56... Ka8 {[%clk
0:00:09.1]} 57. Rf1 {[%clk 0:00:09.7]} 57... Qd5 {[%clk 0:00:07.1]} 58. Nf2
{[%clk 0:00:08.4]} 58... Qe5 {[%clk 0:00:05.9]} 59. Kg2 {[%clk 0:00:08.3]} 59...
Qd5+ {[%clk 0:00:05.6]} 60. Kg1 {[%clk 0:00:08.1]} 60... Qe5 {[%clk 0:00:06.2]}
61. Rg2 {[%clk 0:00:08]} 61... Re3 {[%clk 0:00:05.7]} 62. Ng4 {[%clk 0:00:07.5]}
62... Qd4 {[%clk 0:00:04.8]} 63. Nxe3 {[%clk 0:00:06.8]} 63... Qxe3+ {[%clk
0:00:05.7]} 64. Rff2 {[%clk 0:00:06.8]} 64... c3 {[%clk 0:00:05.1]} 65. Kh2
{[%clk 0:00:06.8]} 65... Qe5+ {[%clk 0:00:04.9]} 66. Kh3 {[%clk 0:00:06.8]}
66... Qe3+ {[%clk 0:00:04.1]} 67. Kg4 {[%clk 0:00:06.8]} 67... Qe6+ {[%clk
0:00:04.8]} 68. Kg3 {[%clk 0:00:06.8]} 68... Qe3+ {[%clk 0:00:04.8]} 69. Rf3
{[%clk 0:00:06.9]} 69... Qe5+ {[%clk 0:00:04.6]} 70. Kh3 {[%clk 0:00:06.9]}
70... c2 {[%clk 0:00:04.8]} 71. Rxc2 {[%clk 0:00:05.1]} 71... Qe6+ {[%clk
0:00:05.2]} 72. Kg2 {[%clk 0:00:04.3]} 72... Qg4+ {[%clk 0:00:04]} 73. Kf2
{[%clk 0:00:04.3]} 73... Qxg5 {[%clk 0:00:04.1]} 74. Re2 {[%clk 0:00:03.7]}
74... Qh4+ {[%clk 0:00:03.8]} 75. Kf1 {[%clk 0:00:03.4]} 75... Qh1+ {[%clk
0:00:03.9]} 76. Kf2 {[%clk 0:00:04.3]} 76... Qh2+ {[%clk 0:00:04.3]} 77. Ke3
{[%clk 0:00:04.7]} 77... Qh4 {[%clk 0:00:05]} 78. Rf8+ {[%clk 0:00:03.8]} 78...
Kb7 {[%clk 0:00:04.6]} 79. Ref2 {[%clk 0:00:04.7]} 79... Qg5+ {[%clk 0:00:04.6]}
80. Kd3 {[%clk 0:00:04.3]} 80... Qd5+ {[%clk 0:00:04.9]} 81. Kc3 {[%clk
0:00:04]} 81... Qb3+ {[%clk 0:00:05.5]} 82. Kd4 {[%clk 0:00:03.9]} 82... Qe6
{[%clk 0:00:05.7]} 83. R2f7+ {[%clk 0:00:03.8]} 83... Kc6 {[%clk 0:00:06]} 84.
Rf6 {[%clk 0:00:03.8]} 84... Kd7 {[%clk 0:00:06.9]} 85. Rxe6 {[%clk 0:00:03.6]}
85... Kxe6 {[%clk 0:00:07.8]} 86. Rh8 {[%clk 0:00:03.8]} 1-0

[Event "*** Titled Tuesday Blitz"]
[Site "Chess.com"]
[Date "2021.03.30"]
[Round "3"]
[White "Loy_Konstantin"]
[Black "aunqa"]
[Result "1/2-1/2"]
[WhiteElo "2312"]
[BlackElo "2110"]
[TimeControl "180+1"]
[EndTime "10:30:48 PDT"]
[Termination "Game drawn - insufficient material"]

1. e4 {[%clk 0:02:58.1]} 1... c5 {[%clk 0:02:58]} 2. Nf3 {[%clk 0:02:58]} 2...
Nc6 {[%clk 0:02:56.2]} 3. Nc3 {[%clk 0:02:57.7]} 3... g6 {[%clk 0:02:55.1]} 4.
d4 {[%clk 0:02:57.3]} 4... cxd4 {[%clk 0:02:54.9]} 5. Nxd4 {[%clk 0:02:58.2]}
5... Bg7 {[%clk 0:02:55.2]} 6. Be3 {[%clk 0:02:58.7]} 6... Nf6 {[%clk
0:02:54.6]} 7. Bc4 {[%clk 0:02:59.2]} 7... O-O {[%clk 0:02:53.4]} 8. Bb3 {[%clk
0:02:59.2]} 8... d6 {[%clk 0:02:52.5]} 9. f3 {[%clk 0:02:57.1]} 9... Re8 {[%clk
0:02:51.9]} 10. Qd2 {[%clk 0:02:56]} 10... Bd7 {[%clk 0:02:40.1]} 11. h4 {[%clk
0:02:55.7]} 11... h5 {[%clk 0:02:37.9]} 12. O-O-O {[%clk 0:02:53.5]} 12... a6
{[%clk 0:02:34.2]} 13. Kb1 {[%clk 0:02:36.2]} 13... b5 {[%clk 0:02:32.6]} 14.
Nxc6 {[%clk 0:02:31.9]} 14... Bxc6 {[%clk 0:02:31.8]} 15. Bh6 {[%clk 0:02:32.4]}
15... Bh8 {[%clk 0:02:27.3]} 16. g4 {[%clk 0:02:28.6]} 16... a5 {[%clk
0:02:25.8]} 17. Qg5 {[%clk 0:02:14.3]} 17... e6 {[%clk 0:02:18.4]} 18. gxh5
{[%clk 0:01:36.2]} 18... Nxh5 {[%clk 0:02:15.9]} 19. Qxd8 {[%clk 0:01:21.9]}
19... Raxd8 {[%clk 0:02:15]} 20. a3 {[%clk 0:01:21.7]} 20... Be5 {[%clk
0:02:05.8]} 21. Ne2 {[%clk 0:01:06.5]} 21... b4 {[%clk 0:01:51.3]} 22. a4 {[%clk
0:01:01]} 22... Kh7 {[%clk 0:01:38.5]} 23. Bg5 {[%clk 0:01:00.2]} 23... f6
{[%clk 0:01:38]} 24. Be3 {[%clk 0:01:00.6]} 24... f5 {[%clk 0:01:37.4]} 25. exf5
{[%clk 0:00:41.8]} 25... exf5 {[%clk 0:01:25.7]} 26. Rhf1 {[%clk 0:00:41.7]}
26... Bxb2 {[%clk 0:01:13.5]} 27. Kxb2 {[%clk 0:00:41.2]} 27... Rxe3 {[%clk
0:01:12.8]} 28. Nd4 {[%clk 0:00:41.9]} 28... Bb7 {[%clk 0:01:11.6]} 29. f4
{[%clk 0:00:37.9]} 29... Rde8 {[%clk 0:01:04.9]} 30. Nb5 {[%clk 0:00:36.5]}
30... R8e7 {[%clk 0:00:58.2]} 31. Nxd6 {[%clk 0:00:35.4]} 31... Ba6 {[%clk
0:00:57.7]} 32. Rf2 {[%clk 0:00:32.7]} 32... Rd7 {[%clk 0:00:47]} 33. Nxf5
{[%clk 0:00:23.1]} 33... Rxb3+ {[%clk 0:00:43.7]} 34. cxb3 {[%clk 0:00:23.1]}
34... Rxd1 {[%clk 0:00:42.9]} 35. Ne3 {[%clk 0:00:20.1]} 35... Re1 {[%clk
0:00:37.8]} 36. Nc4 {[%clk 0:00:10.9]} 36... Ng3 {[%clk 0:00:30.8]} 37. Nxa5
{[%clk 0:00:07.8]} 37... Re2+ {[%clk 0:00:28.8]} 38. Rxe2 {[%clk 0:00:07.7]}
38... Nxe2 {[%clk 0:00:29.7]} 39. Nc6 {[%clk 0:00:08.1]} 39... Nxf4 {[%clk
0:00:28.7]} 40. Nxb4 {[%clk 0:00:08.3]} 40... Nd3+ {[%clk 0:00:21.2]} 41. Nxd3
{[%clk 0:00:07.4]} 41... Bxd3 {[%clk 0:00:22.1]} 42. Kc3 {[%clk 0:00:08.2]}
42... Be2 {[%clk 0:00:21.1]} 43. b4 {[%clk 0:00:06.7]} 43... Kh6 {[%clk
0:00:21.5]} 44. b5 {[%clk 0:00:06.8]} 44... Kh5 {[%clk 0:00:21.9]} 45. Kb4
{[%clk 0:00:07.4]} 45... Kxh4 {[%clk 0:00:22]} 46. a5 {[%clk 0:00:08.3]} 46...
g5 {[%clk 0:00:21.6]} 47. a6 {[%clk 0:00:08.8]} 47... g4 {[%clk 0:00:20.9]} 48.
Ka5 {[%clk 0:00:04.8]} 48... g3 {[%clk 0:00:20.5]} 49. b6 {[%clk 0:00:05.4]}
49... g2 {[%clk 0:00:18.6]} 50. b7 {[%clk 0:00:06.3]} 50... g1=Q {[%clk
0:00:18.5]} 51. b8=Q {[%clk 0:00:06.8]} 51... Qa1+ {[%clk 0:00:17.9]} 52. Kb6
{[%clk 0:00:05.3]} 52... Qxa6+ {[%clk 0:00:17.9]} 53. Kc7 {[%clk 0:00:05.6]}
53... Qa5+ {[%clk 0:00:16.8]} 54. Qb6 {[%clk 0:00:05.4]} 54... Qe5+ {[%clk
0:00:16.5]} 55. Qd6 {[%clk 0:00:05.1]} 55... Qc3+ {[%clk 0:00:16.6]} 56. Qc6
{[%clk 0:00:04.9]} 56... Qg3+ {[%clk 0:00:16.6]} 57. Qd6 {[%clk 0:00:04.8]}
57... Qg5 {[%clk 0:00:15.5]} 58. Qc6 {[%clk 0:00:03.9]} 58... Bg4 {[%clk
0:00:14.2]} 59. Qd6 {[%clk 0:00:03.8]} 59... Bh3 {[%clk 0:00:14]} 60. Kb6 {[%clk
0:00:03.9]} 60... Qe3+ {[%clk 0:00:13.1]} 61. Qc5 {[%clk 0:00:03.6]} 61... Qe6+
{[%clk 0:00:12.9]} 62. Kb5 {[%clk 0:00:03.7]} 62... Bf1+ {[%clk 0:00:12.1]} 63.
Kb4 {[%clk 0:00:03.9]} 63... Qe4+ {[%clk 0:00:11.2]} 64. Kc3 {[%clk 0:00:03.8]}
64... Qd3+ {[%clk 0:00:11]} 65. Kb4 {[%clk 0:00:04.2]} 65... Qb1+ {[%clk
0:00:11.1]} 66. Ka5 {[%clk 0:00:03.6]} 66... Qa2+ {[%clk 0:00:11.2]} 67. Kb6
{[%clk 0:00:03.7]} 67... Qb3+ {[%clk 0:00:10.8]} 68. Kc7 {[%clk 0:00:03.8]}
68... Qf7+ {[%clk 0:00:10.4]} 69. Kb6 {[%clk 0:00:03.8]} 69... Qf6+ {[%clk
0:00:09.9]} 70. Qc6 {[%clk 0:00:04.2]} 70... Qf2+ {[%clk 0:00:09.5]} 71. Qc5
{[%clk 0:00:05.1]} 71... Qb2+ {[%clk 0:00:09.1]} 72. Kc7 {[%clk 0:00:05.2]}
72... Bg2 {[%clk 0:00:09.1]} 73. Kd6 {[%clk 0:00:05.6]} 73... Qf6+ {[%clk
0:00:08.3]} 74. Kc7 {[%clk 0:00:05.5]} 74... Qf4+ {[%clk 0:00:07.7]} 75. Qd6
{[%clk 0:00:05.6]} 75... Qg5 {[%clk 0:00:06.9]} 76. Kb6 {[%clk 0:00:05.2]} 76...
Kh3 {[%clk 0:00:06.3]} 77. Qd3+ {[%clk 0:00:04.3]} 77... Kh2 {[%clk 0:00:05.5]}
78. Qd6+ {[%clk 0:00:04.4]} 78... Kh1 {[%clk 0:00:04.8]} 79. Qd1+ {[%clk
0:00:04.5]} 79... Kh2 {[%clk 0:00:04.2]} 80. Qd6+ {[%clk 0:00:04.6]} 80... Kg1
{[%clk 0:00:04.4]} 81. Qd1+ {[%clk 0:00:04.4]} 81... Bf1 {[%clk 0:00:04.7]} 82.
Qd4+ {[%clk 0:00:04.4]} 82... Kh1 {[%clk 0:00:04.3]} 83. Qe4+ {[%clk 0:00:04.4]}
83... Bg2 {[%clk 0:00:03.9]} 84. Qb1+ {[%clk 0:00:04.3]} 84... Kh2 {[%clk
0:00:03.6]} 85. Qb5 {[%clk 0:00:04.3]} 85... Qf6+ {[%clk 0:00:02.4]} 86. Kc5
{[%clk 0:00:04.5]} 86... Qe5+ {[%clk 0:00:02.5]} 87. Kb4 {[%clk 0:00:05]} 87...
Qd4+ {[%clk 0:00:02.8]} 88. Ka5 {[%clk 0:00:05.1]} 88... Qa1+ {[%clk 0:00:02.8]}
89. Kb6 {[%clk 0:00:05.5]} 89... Qd4+ {[%clk 0:00:03.3]} 90. Qc5 {[%clk
0:00:05.6]} 90... Qf6+ {[%clk 0:00:03.7]} 91. Kb5 {[%clk 0:00:05.3]} 91... Qb2+
{[%clk 0:00:04.2]} 92. Qb4 {[%clk 0:00:05.2]} 92... Qxb4+ {[%clk 0:00:04.3]} 93.
Kxb4 {[%clk 0:00:05.4]} 1/2-1/2